Cogmind - Beta 13 @@@ ROGUE MODE // 2024.06.04 @ 16:10:39 Player: Skergy Result: Destroyed by S-27 Virus with Autogun Performance ------------- Evolutions (5) 2500 Regions Visited (10) 2000 Robots Destroyed (42) 210 Value Destroyed (1212) 1212 Prototype IDs (8) 160 Alien Tech Used (0) 0 Bonus (811) 811 TOTAL SCORE: 6893 Bonus ------- High Alert Combat Kills 11 Entered DSFs 500 Aligned with FarCom 300 Cogmind --------- Core Integrity 0/1000 Matter 300/300 Energy 99/100 System Corruption 5% Temperature Cool (0) Movement Core (50) Location -5/Upper Caves Parts ------- > --- POWER (2) -------- (None) > --- PROPULSION (5) --- (None) > --- UTILITY (7) ------ Enhanced Optical Array Advanced Signal Interpreter Advanced Melee Analysis Suite > --- WEAPON (3) ------- (None) > --- INVENTORY (5) ---- Core Analyzer Hardened Heavy Armor Plating Improved Remote Datajack Peak State ------------ > --- POWER ------------ Improved Deuterium Engine Fission Core > --- PROPULSION ------- Gravmag Array Gyrokinetic Inverter Linear Gravjet Linear Gravjet > --- UTILITY ---------- Power Amplifier Small Storage Unit Advanced Signal Interpreter Advanced Melee Analysis Suite ECM Suite Advanced ECM Suite System Shield > --- WEAPON ----------- Improved Remote Datajack Impact Mace Impact Mace > --- INVENTORY -------- Light Angular Momentum Engine Light Angular Momentum Engine Improved Gravmag System Nuclear Pulse Array Small Matter Pod Enhanced Optical Array Advanced Shield Generator [Rating: 80] Favorites ----------- Power Ion Engine Engine Ion Engine Power Core Fission Core Propulsion Potential Leg Treads Light Treads Leg Potential Leg Hover Unit Linear Gravjet Flight Unit Nuclear Pulse Array Utility System Shield Device ECM Suite Storage Small Storage Unit Processor Signal Interpreter Hackware System Shield Protection Improved Medium Armor Plating Weapon Impact Mace Energy Gun Medium Laser Energy Cannon Heavy Ion Cannon Ballistic Gun Assault Rifle Ballistic Cannon Mini Assault Cannon Launcher Rocket Launcher Special Weapon Improved Remote Datajack Impact Weapon Impact Mace Build | -11 -10 -10 -10 -9 -8 -7 -6 -6 -5 -5 ------- Run | Yrd Mat Min Exi Min Mat Fac Fac DSF Fac Upp Slots Evolved 10 | . . . . . 4 2 2 . 2 . Power 1 | . . . . . . 1 . . . . Propulsion 3 | . . . . . 2 . 1 . . . Utility 5 | . . . . . 2 . 1 . 2 . Weapon 1 | . . . . . . 1 . . . . Parts Attached 82 | 6 2 1 7 . 18 13 9 . 17 9 Power 7 | 1 . . . . 1 . 1 . 2 2 Engine 6 | 1 . . . . 1 . 1 . 1 2 Core 1 | . . . . . . . . . 1 . Reactor . | . . . . . . . . . . . Propulsion 25 | 2 . . 2 . 6 5 2 . 5 3 Treads 2 | 2 . . . . . . . . . . Leg 9 | . . . 2 . 6 1 . . . . Wheel . | . . . . . . . . . . . Hover 9 | . . . . . . . 2 . 5 2 Flight 5 | . . . . . . 4 . . . 1 Utility 26 | 1 1 1 4 . 5 3 2 . 7 2 Device 11 | . . . 1 . 3 2 2 . 2 1 Storage 7 | 1 . 1 3 . 1 . . . 1 . Processor 5 | . 1 . . . . . . . 3 1 Hackware 2 | . . . . . 1 . . . 1 . Protection 1 | . . . . . . 1 . . . . Artifact . | . . . . . . . . . . . Weapon 24 | 2 1 . 1 . 6 5 4 . 3 2 Energy Gun 5 | 1 . . 1 . 2 . . . 1 . Energy Cannon 3 | . . . . . 2 1 . . . . Ballistic Gun 1 | 1 . . . . . . . . . . Ballistic Cannon 2 | . . . . . . 2 . . . . Launcher 3 | . 1 . . . 2 . . . . . Special Weapon 3 | . . . . . . 1 . . 2 . Impact Weapon 7 | . . . . . . 1 4 . . 2 Slashing Weapon . | . . . . . . . . . . . Piercing Weapon . | . . . . . . . . . . . Special Melee Weapon . | . . . . . . . . . . . Unidentified Prototypes 8 | . . . 3 . 2 1 2 . . . Parts Lost 29 | . 1 . . . 5 7 . 1 2 13 Power 5 | . . . . . 1 . . . 1 3 Propulsion 15 | . . . . . 2 6 . . 1 6 Utility 7 | . . . . . 1 1 . 1 . 4 Weapon 2 | . 1 . . . 1 . . . . . Highest Loss Streak 9 | . 1 . . . 3 5 . 1 2 9 To Critical Strikes . | . . . . . . . . . . . Average Slot Usage (%) 83 | . 88 85 93 100 94 81 31 48 86 56 Engine 8 | . 14 14 14 14 8 5 1 6 5 6 Core 1 | . . . . . . . . . 4 . Treads 4 | . 28 28 10 . . . . . . . Leg 13 | . . . 17 28 33 25 . . . . Hover 6 | . . . . . . . 8 13 22 10 Device 6 | . . . . . 7 2 7 10 16 10 Storage 7 | . 14 14 13 14 9 6 . . 4 3 Processor 9 | . 7 14 14 14 9 6 . . 10 12 Hackware 4 | . . . . . 8 6 . . 4 3 Energy Gun 2 | . 1 . 8 14 3 . . . . . Energy Cannon 2 | . . . . . 8 5 . . . . Ballistic Gun 4 | . 14 14 14 14 4 . . . . . Ballistic Cannon 1 | . . . . . . 6 . . . . Launcher 1 | . 8 . . . 1 3 . . . . Impact Weapon 4 | . . . . . . 2 13 17 11 2 Naked Turns 9 | . . . . . . 6 3 . . . Heaviest Build 73 | 14 15 17 29 29 59 73 22 22 41 35 Greatest Support 90 | 40 40 40 60 60 80 90 28 28 50 31 Greatest Overweight (x) 1 | . . . . . 1 1 . . 1 1 Average Overweight (x) . | . . . . . . . . . . . Largest Inventory Capacity 20 | 8 8 10 15 15 20 20 5 5 8 8 Average Capacity 11 | 7 8 9 9 15 19 18 5 5 7 6 Most Carried 20 | 4 8 10 10 12 20 20 5 3 8 8 Average Carried 10 | 2 5 9 9 10 15 17 4 3 7 6 Final Capacity 20 | 8 8 10 15 15 20 5 5 5 8 5 Final Carried 20 | 4 8 10 10 12 20 5 3 3 8 4 Class Distribution -------------------- 60% | Mutant 18% | Gladiator 11% | Skirmisher 5% | Sprinter 3% | Scout Dominant Class ---------------- Mutant | -10/Materials Mutant | -10/Mines Mutant | -10/Exiles Mutant | -9/Mines Mutant | -8/Materials Skirmisher | -7/Factory Scout | -6/Factory Ninja | -6/DSF Gladiator | -5/Factory Mutant | -5/Upper Caves Resources | -11 -10 -10 -10 -9 -8 -7 -6 -6 -5 -5 ----------- Run | Yrd Mat Min Exi Min Mat Fac Fac DSF Fac Upp Matter Collected 1246 | 234 96 10 . . 311 161 101 . 179 154 Remotely . | . . . . . . . . . . . Salvage Created 1358 | . 142 . . . 637 115 101 . 272 91 Parts 64 | . 16 . . . 24 9 2 . 11 2 Haulers Intercepted 2 | . . . . . . . 1 . 1 . Recyclers Shooed 1 | . . . . . 1 . . . . . Parts Field Recycled . | . . . . . . . . . . . Retrieved Matter . | . . . . . . . . . . . Parts Self-Destructed 4 | . . . . . . . . . . 4 Prevented 1 | . . . . . . . . . . 1 Kills | -11 -10 -10 -10 -9 -8 -7 -6 -6 -5 -5 ------- Run | Yrd Mat Min Exi Min Mat Fac Fac DSF Fac Upp Combat Hostiles Destroyed 23 | . 4 . . . 13 4 . . . 2 Melee 2 | . . . . . . . . . . 2 Guns 4 | . 3 . . . 1 . . . . . Cannons 13 | . . . . . 10 3 . . . . AOE 2 | . 1 . . . 1 . . . . . Classes Destroyed 12 | . 4 . . . 4 3 1 . . . Worker 10 | . . . . . 2 . . . 8 . Builder 2 | . . . . . 1 . . . 1 . Hauler 2 | . . . . . . . 1 . 1 . Operator 2 | . 1 . . . . 1 . . . . Watcher 3 | . 2 . . . . . . . 1 . Swarmer 3 | . 3 . . . . . . . . . Cutter 1 | . . . . . . 1 . . . . Grunt 12 | . 1 . . . 11 . . . . . Sentry 2 | . . . . . 1 1 . . . . Specialist 1 | . . . . . . 1 . . . . Hunter 1 | . . . . . 1 . . . . . Programmer 3 | . . . . . . 1 . . . 2 Best Kill Streak 6 | . 5 . . . 6 1 1 . 4 4 Combat Bots Only 4 | . 3 . . . 4 1 . . . 2 Max Kills in Single Turn 2 | . 2 . . . 2 1 1 . 1 1 Gunslinging . | . . . . . . . . . . . Exploded 1 | . 1 . . . 1 . . . . . Melee 1 | . . . . . . . . . . 1 Uniques/NPCs Destroyed . | . . . . . . . . . . . Combat | -11 -10 -10 -10 -9 -8 -7 -6 -6 -5 -5 -------- Run | Yrd Mat Min Exi Min Mat Fac Fac DSF Fac Upp Hostile Shots Fired 501 | . 39 . . . 102 155 . 10 8 187 Missed 204 | . 11 . . . 31 82 . 3 1 76 Damage Taken 5128 | . 243 . . . 975 1557 . 216 392 1745 Core 1823 | . 38 . . . 161 604 . 11 . 1009 Absorbed by Shields 217 | . . . . . 137 . . . . 80 Core Remaining (%) 73 | 100 . . . 84 70 13 . 98 . . Volleys Fired 79 | . 15 . . . 49 13 . . 2 . Largest 3 | . 2 . . . 2 3 . . 1 . Hottest 196 | . 50 . . . 118 196 . . 7 . Shots Fired 142 | . 16 . . . 94 30 . . 2 . Gun 55 | . 15 . . . 40 . . . . . Cannon 71 | . . . . . 49 22 . . . . Launcher 11 | . 1 . . . 5 5 . . . . Special 5 | . . . . . . 3 . . 2 . Kinetic 58 | . 15 . . . 27 16 . . . . Thermal 71 | . . . . . 62 9 . . . . Explosive 11 | . 1 . . . 5 5 . . . . Electromagnetic . | . . . . . . . . . . . Robot Hit Streak 9 | . 6 . . . 8 9 . . 1 . Robot Miss Streak 6 | . 5 . . . 6 3 . . 1 . Penetration Max . | . . . . . . . . . . . Secondary Targets . | . . . . . . . . . . . Shots Hit Robots 105 | . 9 . . . 57 17 3 . 12 7 Core Hits 52 | . 8 . . . 30 7 1 . 4 2 Critical Kills 3 | . . . . . . . 1 . 1 1 Critical Parts Destroyed 6 | . . . . . . 1 . . 3 2 Critical Strikes 9 | . . . . . . 1 1 . 4 3 Smash 9 | . . . . . . 1 1 . 4 3 Melee Attacks 49 | . . . . . . 21 4 . 14 10 Impact 49 | . . . . . . 21 4 . 14 10 Slashing . | . . . . . . . . . . . Piercing . | . . . . . . . . . . . Sneak Attacks 14 | . . . . . . 1 1 . 10 2 Combat Hostiles 2 | . . . . . . . . . . 2 Follow-up Attacks 1 | . . . . . . . . . . 1 Damage Inflicted 4033 | . 186 . . . 1328 657 178 . 1146 538 Guns 457 | . 122 . . . 335 . . . . . Cannons 1075 | . . . . . 730 345 . . . . Explosions 327 | . 64 . . . 263 . . . . . Melee 2133 | . . . . . . 309 178 . 1146 500 Ramming 41 | . . . . . . 3 . . . 38 Kinetic 591 | . 122 . . . 206 263 . . . . Thermal 941 | . . . . . 859 82 . . . . Explosive 327 | . 64 . . . 263 . . . . . Electromagnetic . | . . . . . . . . . . . Impact 2133 | . . . . . . 309 178 . 1146 500 Slashing . | . . . . . . . . . . . Piercing . | . . . . . . . . . . . Highest Corruption 5 | . . . . . . 3 . . 1 5 Average Corruption 1 | . . . . . . 1 . . 1 3 Corruption Purged . | . . . . . . . . . . . Corruption Blocked . | . . . . . . . . . . . Effects 6 | . . . . . . 3 . . . 3 Message Errors 2 | . . . . . . 1 . . . 1 Matter Fused 1 | . . . . . . 1 . . . . Heat Flow Errors 2 | . . . . . . . . . . 2 Parts Rejected 1 | . . . . . . 1 . . . . Overload Shots . | . . . . . . . . . . . Overflow Damage 1135 | . 11 . . . 75 148 42 . 591 268 Projectiles 50 | . . . . . 50 . . . . . Explosions 36 | . 11 . . . 25 . . . . . Melee 1049 | . . . . . . 148 42 . 591 268 Knockbacks 6 | . . . . . . 4 . . 1 1 Impact 4 | . . . . . . 2 . . 1 1 Kinetic 2 | . . . . . . 2 . . . . Secondary . | . . . . . . . . . . . Self-Inflicted Damage 105 | . 32 . . . 45 11 . . . 17 Shots 5 | . 1 . . . 3 1 . . . . Rammed 7 | . . . . . . . . . . 7 Targets Rammed 8 | . . . . . . 1 . . . 7 Kicked 1 | . . . . . . 1 . . . . Crushed . | . . . . . . . . . . . Highest Temperature 239 | . . . . . 234 135 . . 222 239 Average Temperature 83 | . . . . . 91 44 . . 86 101 Received Heat Transfer 706 | . . . . . 556 105 . . 18 27 Effects 3 | . . . . . . . . . 3 . Interference 3 | . . . . . . . . . 3 . Siege Activations . | . . . . . . . . . . . Robots Corrupted . | . . . . . . . . . . . Combat Hostiles . | . . . . . . . . . . . Parts Fried 3 | . . . . . . 1 . . 2 . Impact Corruptions 25 | . . . . . . 4 1 . 13 7 Robots Melted 1 | . . . . . 1 . . . . . Combat Hostiles 1 | . . . . . 1 . . . . . Parts Melted 1 | . . . . . 1 . . . . . Heat Transferred 1739 | . . . . . 1628 111 . . . . Parts Sabotaged . | . . . . . . . . . . . Parts Stolen . | . . . . . . . . . . . Parts Stripped . | . . . . . . . . . . . Power Chain Reactions . | . . . . . . . . . . . Alert | -11 -10 -10 -10 -9 -8 -7 -6 -6 -5 -5 ------- Run | Yrd Mat Min Exi Min Mat Fac Fac DSF Fac Upp Peak Influence 394 | . 153 59 . . 394 238 107 74 68 . Initial 100 | . . 59 . . . 90 100 74 33 . Average 79 | . 102 59 . . 161 112 103 70 29 . Maximum Alert Level 1 | . . . . . 1 1 . . . . Low Security (%) 92 | 100 100 100 . 100 65 93 100 100 100 . Level 1 7 | . . . . . 34 6 . . . . Level 2 . | . . . . . . . . . . . Level 3 . | . . . . . . . . . . . Level 4 . | . . . . . . . . . . . Level 5 . | . . . . . . . . . . . High Security . | . . . . . . . . . . . Max Security . | . . . . . . . . . . . Squads Dispatched 14 | . 1 . . . 2 7 . 1 3 . Investigation 5 | . . . . . 1 3 . . 1 . Extermination 3 | . . . . . . 2 . . 1 . Reinforcement 6 | . 1 . . . 1 2 . 1 1 . Assault . | . . . . . . . . . . . Garrison . | . . . . . . . . . . . Intercept . | . . . . . . . . . . . Searches Triggered . | . . . . . . . . . . . Construction Impeded . | . . . . . . . . . . . Haulers Reinforced . | . . . . . . . . . . . Active Scanning Responses . | . . . . . . . . . . . Cargo Convoy Interrupts . | . . . . . . . . . . . Stealth | -11 -10 -10 -10 -9 -8 -7 -6 -6 -5 -5 --------- Run | Yrd Mat Min Exi Min Mat Fac Fac DSF Fac Upp Distress Signals 2 | . . . . . 1 1 . . . . Communications Jammed . | . . . . . . . . . . . Distress Signals . | . . . . . . . . . . . Times Spotted 96 | . 6 . . . 21 30 . 4 6 29 Peak Tracking Total 15 | . 4 . . . 6 15 . 4 3 11 Tactical Retreats 14 | . . . . . 2 3 . . 3 6 Traps | -11 -10 -10 -10 -9 -8 -7 -6 -6 -5 -5 ------- Run | Yrd Mat Min Exi Min Mat Fac Fac DSF Fac Upp Traps Triggered 3 | . . . . . . 1 . 1 1 . Indirectly . | . . . . . . . . . . . Trap Hack Attempts . | . . . . . . . . . . . Triggered . | . . . . . . . . . . . Disarmed . | . . . . . . . . . . . Reprogrammed . | . . . . . . . . . . . Reused . | . . . . . . . . . . . Traps Extracted . | . . . . . . . . . . . Installed . | . . . . . . . . . . . Triggered 3 | . . . . . . . . . . 3 Machines | -11 -10 -10 -10 -9 -8 -7 -6 -6 -5 -5 ---------- Run | Yrd Mat Min Exi Min Mat Fac Fac DSF Fac Upp Machines Disabled 4 | . 1 . . . . 3 . . . . Max in Single Turn 2 | . 1 . . . . 2 . . . . Machines Repaired . | . . . . . . . . . . . Machines Dismantled . | . . . . . . . . . . . Machines Sabotaged . | . . . . . . . . . . . Overloaded Fab Kills . | . . . . . . . . . . . Hacking | -11 -10 -10 -10 -9 -8 -7 -6 -6 -5 -5 --------- Run | Yrd Mat Min Exi Min Mat Fac Fac DSF Fac Upp Machines Accessed 19 | . 2 . 4 1 4 3 1 . 4 . Terminals 11 | . 2 . . . 2 3 1 . 3 . Fabricators . | . . . . . . . . . . . Repair Stations . | . . . . . . . . . . . Recycling Units 2 | . . . . . 1 . . . 1 . Scanalyzers 1 | . . . . . 1 . . . . . Garrison Access . | . . . . . . . . . . . Total Hacks 73 | . 4 . 19 1 26 9 2 . 12 . Successful 48 | . 1 . 19 1 20 2 1 . 4 . Failed 25 | . 3 . . . 6 7 1 . 8 . Catastrophic 5 | . 1 . . . . 3 . . 1 . Database Lockouts . | . . . . . . . . . . . Manual 17 | . 3 . 1 . 6 5 . . 2 . Terminals 35 | . 4 . . . 9 9 2 . 11 . Fabricators . | . . . . . . . . . . . Repair Stations . | . . . . . . . . . . . Recycling Units 3 | . . . . . 2 . . . 1 . Scanalyzers 15 | . . . . . 15 . . . . . Garrison Access . | . . . . . . . . . . . Terminal Hacks 29 | . 1 . 19 1 2 2 1 . 3 . Record 21 | . . . 19 . 2 . . . . . Part Schematic 1 | . . . . . . 1 . . . . Open Door 1 | . . . . 1 . . . . . . Open DSF 2 | . . . . . . . 1 . 1 . Branch Access Points 1 | . . . . . . . . . 1 . Recall Investigation 1 | . . . . . . . . . 1 . Hauler Manifests 1 | . 1 . . . . . . . . . Zone Layout 1 | . . . . . . 1 . . . . Fabricator Hacks . | . . . . . . . . . . . Repair Station Hacks . | . . . . . . . . . . . Recycling Unit Hacks . | . . . . . . . . . . . Scanalyzer 14 | . . . . . 14 . . . . . Insert Component 8 | . . . . . 8 . . . . . Analyze 6 | . . . . . 6 . . . . . Garrison Access Hacks . | . . . . . . . . . . . Unauthorized Hacks 5 | . . . . . 4 . . . 1 . Terminals 2 | . . . . . 2 . . . . . Botnet 2 | . . . . . 2 . . . . . Fabricators . | . . . . . . . . . . . Repair Stations . | . . . . . . . . . . . Recycling Units 3 | . . . . . 2 . . . 1 . Reject 2 | . . . . . 1 . . . 1 . Tunnel 1 | . . . . . 1 . . . . . Scanalyzers . | . . . . . . . . . . . Garrison Access . | . . . . . . . . . . . Data Cores Recovered 1 | . . . . . . 1 . . . . Used 1 | . . . . . . 1 . . . . Hacking Detections 11 | . 2 . . . 3 3 1 . 2 . Full Trace Events 3 | . . . . . . 2 . . 1 . Feedback Events . | . . . . . . . . . . . Feedback Blocked . | . . . . . . . . . . . Robot Schematics Acquired . | . . . . . . . . . . . Robots Built . | . . . . . . . . . . . Authchips . | . . . . . . . . . . . Time . | . . . . . . . . . . . Total Robot Build Rating . | . . . . . . . . . . . Part Schematics Acquired 7 | . . . . . 6 1 . . . . Parts Built . | . . . . . . . . . . . Authchips . | . . . . . . . . . . . Time . | . . . . . . . . . . . Total Part Build Rating . | . . . . . . . . . . . Parts Repaired . | . . . . . . . . . . . Time . | . . . . . . . . . . . Parts Recycled . | . . . . . . . . . . . Recycled Matter . | . . . . . . . . . . . Retrieved Matter . | . . . . . . . . . . . Retrieved Components . | . . . . . . . . . . . Parts Scanalyzed 6 | . . . . . 6 . . . . . Part Schematics Acquired 6 | . . . . . 6 . . . . . Parts Damaged . | . . . . . . . . . . . Bothacking | -11 -10 -10 -10 -9 -8 -7 -6 -6 -5 -5 ------------ Run | Yrd Mat Min Exi Min Mat Fac Fac DSF Fac Upp Used RIF Installer . | . . . . . . . . . . . Robots Hacked 1 | . . . . . . . . . 1 . Non-combat 1 | . . . . . . . . . 1 . Combat . | . . . . . . . . . . . Robot Hacks Applied 1 | . . . . . . . . . 1 . no_distress 1 | . . . . . . . . . 1 . Relay Couplers Released . | . . . . . . . . . . . Fabnet Peak Effective % . | . . . . . . . . . . . Robots Rewired . | . . . . . . . . . . . Allies Hacked . | . . . . . . . . . . . Hacks Repelled . | . . . . . . . . . . . Allies | -11 -10 -10 -10 -9 -8 -7 -6 -6 -5 -5 -------- Run | Yrd Mat Min Exi Min Mat Fac Fac DSF Fac Upp Total Allies 1 | . . . . . 1 . . . . . Largest Group 1 | . . . . . 1 . . . . . Highest-Rated Group 15 | . . . . . 15 . . . . . Highest-Rated Ally 15 | . . . . . 15 . . . . . Total Orders 8 | . . . . . 7 1 . . . . ROAM 1 | . . . . . 1 . . . . . EXPLORE 4 | . . . . . 3 1 . . . . RETURN 3 | . . . . . 3 . . . . . Ally Attacks 11 | . . . . . 11 . . . . . Total Damage 42 | . . . . . 42 . . . . . Kills . | . . . . . . . . . . . Allies Corrupted . | . . . . . . . . . . . Allies Melted . | . . . . . . . . . . . Intel | -11 -10 -10 -10 -9 -8 -7 -6 -6 -5 -5 ------- Run | Yrd Mat Min Exi Min Mat Fac Fac DSF Fac Upp Robot Analysis Total . | . . . . . . . . . . . Derelict Logs Recovered . | . . . . . . . . . . . Drone Launches 14 | . . . . . 12 2 . . . . Drone Recoveries 10 | . . . . . 10 . . . . . Exploration | -11 -10 -10 -10 -9 -8 -7 -6 -6 -5 -5 ------------- Run | Yrd Mat Min Exi Min Mat Fac Fac DSF Fac Upp Turns Passed 3749 | 78 188 175 534 176 465 753 151 30 922 277 Spaces Moved 3801 | 43 94 108 483 189 219 665 239 58 1309 394 Core 204 | 4 . . . . . 57 5 . . 138 Treads 356 | 39 94 108 115 . . . . . . . Legs 1250 | . . . 368 189 219 474 . . . . Wheels . | . . . . . . . . . . . Hover 1788 | . . . . . . . 234 58 1309 187 Flight 203 | . . . . . . 134 . . . 69 Fastest Speed 29 | 50 160 160 90 90 70 29 50 51 33 36 Average Speed 72 | 149 160 160 106 90 114 80 50 51 39 56 Slowest Speed 183 | 160 160 160 160 90 183 125 51 51 105 121 Overloaded Moves 100 | . . . . . 14 86 . . . . Propulsion Burnouts . | . . . . . . . . . . . Robots Hopped 7 | . . . . . . 5 . . . 2 Cave-ins Triggered 1 | . . . . . . 1 . . . . Exploration Rate (%) 35 | 4 16 35 68 48 36 38 7 46 38 59 Regions Visited 10 Branch Regions 4 Pre-discovered Areas 1 | . . . . . 1 . . . . . Known Exits Taken 7 | . 1 1 1 1 1 . 1 . 1 . Unknown Exits Taken 2 | 1 . . . . . 1 . . . . Scrap Searched 3 | . . 1 . . . . . . . 2 Spaces Dug 13 | . . . . . . 13 . . . . Terrain Destroyed 81 | . . . . . 27 54 . . . . Melee 12 | . . . . . . 12 . . . . Projectile 5 | . . . . . 2 3 . . . . AOE 64 | . . . . . 25 39 . . . . Terrain Rammed . | . . . . . . . . . . . Walls Destroyed . | . . . . . . . . . . . Machines Disabled . | . . . . . . . . . . . Actions | -11 -10 -10 -10 -9 -8 -7 -6 -6 -5 -5 --------- Run | Yrd Mat Min Exi Min Mat Fac Fac DSF Fac Upp Total 4565 | 54 116 111 502 194 338 807 261 57 1689 436 Wait 464 | 2 . . . 4 34 87 . . 329 8 Move 3776 | 42 93 107 482 188 218 653 238 57 1308 390 Hop 7 | . . . . . . 5 . . . 2 Pick Up 53 | 4 4 2 6 2 11 4 5 . 11 4 Fast Attach 40 | 6 2 . 6 . 7 3 6 . 9 1 Attach 30 | . . . . . 8 6 3 . 5 8 Detach 13 | . 1 . . . 5 1 . . 3 3 Swap 12 | . . 1 1 . 3 4 . . 3 . Drop 38 | . 1 1 7 . 3 8 5 . 8 5 Fire 79 | . 15 . . . 49 13 . . 2 . Melee 44 | . . . . . . 21 4 . 11 8 Ram 7 | . . . . . . . . . . 7 Kick 1 | . . . . . . 1 . . . . Crush . | . . . . . . . . . . . Escape Stasis 1 | . . . . . . 1 . . . . Rewire . | . . . . . . . . . . . Trap . | . . . . . . . . . . . Miscellaneous . | . . . . . . . . . . . Route ------- -11/Scrapyard -10/Materials -10/Mines -10/Exiles (discovered 2 exits: *Min x2) -9/Mines -8/Materials (discovered 2 exits: *Fac x2) -7/Factory -6/Factory -6/DSF -5/Factory (discovered 2 exits: *Upp x2) -5/Upper Caves (discovered 1 exit: [*Upp]) History --------- Turn | Location | Event 4 | -11/Scrapyard | Discovered new exit (range 15) 79 | -11/Scrapyard | Entered Materials 133 | -10/Materials | Discovered new exit (range 15) 256 | -10/Materials | Identified exit to Mines 267 | -10/Materials | Entered Mines 317 | -10/Mines | Build established: Mutant 434 | -10/Mines | Deemed a non-threat by the Exiles lab entrance 436 | -10/Mines | Discovered new exit (range 5) 441 | -10/Mines | Identified exit to Exiles 442 | -10/Mines | Entered Exiles 481 | -10/Exiles | Met 8R-AWN 511 | -10/Exiles | Met EX-HEX 554 | -10/Exiles | Met EX-BIN 572 | -10/Exiles | Aligned with FarCom system 574 | -10/Exiles | Given EX-Vault access code 610 | -10/Exiles | Opened EX-Vault 621 | -10/Exiles | Found Prototype Device 621 | -10/Exiles | Identified Cloak of Protection 627 | -10/Exiles | Found Prototype Storage 627 | -10/Exiles | Identified Superbattery 632 | -10/Exiles | Found Prototype Leg 632 | -10/Exiles | Identified Potential Leg 634 | -10/Exiles | Found Potential Leg 695 | -10/Exiles | Warned to stay clear of 0b10 Research branches 720 | -10/Exiles | Met EX-DEC 802 | -10/Exiles | Discovered new exit (range 14) 811 | -10/Exiles | Identified exit to Mines 966 | -10/Exiles | Discovered exit to Mines (range 14) 976 | -10/Exiles | Left Exiles lab with Potential Leg 976 | -10/Exiles | Entered Mines 1024 | -9/Mines | Received a Rocket Launcher from a helpful Derelict 1119 | -9/Mines | Found the Drone Emporium 1122 | -9/Mines | Found Prototype Device 1141 | -9/Mines | Discovered new exit (range 15) 1151 | -9/Mines | Identified exit to Materials 1152 | -9/Mines | Entered Materials 1152 | -8/Materials | Evolved 4 slots: Propulsion x2, Utility x2 1154 | -8/Materials | Identified Splice Drone Bay 1201 | -8/Materials | Discovered new exit (range 41) 1485 | -8/Materials | Lost 3 parts (1p1n1w) 1554 | -8/Materials | Discovered new exit (range 16) 1616 | -8/Materials | Identified exit to Factory 1617 | -8/Materials | Entered Factory 1617 | -7/Factory | Evolved 2 slots: Power x1, Weapon x1 1901 | -7/Factory | Build established: Skirmisher 2076 | -7/Factory | Crushed by falling debris 2347 | -7/Factory | Core integrity fell below 50% 2364 | -7/Factory | Core integrity fell below 20% 2366 | -7/Factory | Discovered new exit (range 8) 2370 | -7/Factory | Entered another Factory area 2370 | -6/Factory | Evolved 2 slots: Propulsion x1, Utility x1 2394 | -6/Factory | Lost 5 parts (4n1u) 2504 | -6/Factory | Identified exit to DSF 2521 | -6/Factory | Entered DSF 2542 | -6/DSF | Discovered new exit (range 13) 2551 | -6/DSF | Entered Factory 2551 | -5/Factory | Evolved 2 slots: Utility x2 3001 | -5/Factory | Build established: Gladiator 3405 | -5/Factory | Spotted B-75 Beast 3431 | -5/Factory | Identified exit to Upper Caves 3473 | -5/Factory | Entered Upper Caves 3517 | -5/Upper Caves | Lost 3 parts (1p2n) 3676 | -5/Upper Caves | Attracted the attention of an 0b10 checkpoint 3685 | -5/Upper Caves | Core integrity fell below 50% 3724 | -5/Upper Caves | Core integrity fell below 20% 3725 | -5/Upper Caves | Lost 9 parts (2p4n3u) 3729 | -5/Upper Caves | Attracted the attention of an 0b10 base 3745 | -5/Upper Caves | Discovered new exit (range 16) 3750 | -5/Upper Caves | Destroyed by S-27 Virus with Autogun Last Messages --------------- 03677_ Slammed into S-27 Virus. 03678_ Imp. Gravmag System destroyed. 03678_ Slammed into S-27 Virus. 03682_ System Shield destroyed. 03693_ Acquired 4 matter. 03694_ Adv. ECM Suite destroyed. 03694_ Acquired 1 matter. 03700_ S-27 Virus destroyed. 03716_ SZDJXKMHTZL%MQ2D&HC0OP|XVAG 0XTMAF 03745_ EXIT=FOUND 03747_ S-27 Virus triggered Dirty Bomb Trap. 03747_ An explosion rips through the floor. 03747_ S-27 Virus destroyed. 03747_ Fire Trap short circuited. 03747_ Dirty Bomb Trap short circuited. 03747_ Burning plasma bursts from the floor. 03747_ An explosion rips through the floor. 03748_ S-27 Virus overheating. 03749_ S-27 Virus heat damages VTOL Module. 03749_ S-27 Virus overheating. Map ----- +----------------------------------------------------+ | ???????????????#####??## ####??????# ##? | | ??????????????## ##?# #""" ????# #? | | ?????????????## #?# # "T??# #?? | | ????????###### ### ?# # # #?? | | ????????# ## #??# # + #?# | | ????????# ## #??## # "# ### | | ????????# #### ## #??# + ??# | | ?????##?# ##### ## #?## #""" ????# | | ????## # ###### ### #??"???? "# ### | | ????# ##??## #?????? ?# ###?# | | ????# #???#### ######/#### #???# | | ????# s#?###??# ##### | | ????# =%;##""?# ### ## | | ????# # ?######?##### ### | | ????# ## ss ####????????# #?? | | ????# ?## *% ;" #????????# ### ##?? | | ????# ??# # #?????? ##?### #??? | | ????# #??# #?????# ##????## #??? | | ????# ???## #?????# ##??????## #?? | | ????# ???# #?????## ?????????## #? | | ????# ???# "" #??????###??????????? # | | ????# ????#######""; ##??????????????????? | | ????# ????????#?##### #####??????????????? | | ????# ???????## ## ##?????????????? # | | ????##???????# ##????????????? ### | | ????????????# @ #????????????? ##?? | | ????????????# ## ## #????????????? ??? | | ????????????# #???## ## < ##????????????? #??? | | ???????????????????## # ##?????????????? #??? | | ????????????????????# # #??????????????? #??? | | ????????????????????# ## #???????????????? ??? | | ????????????????????# ## ???????????????? ??? | | ????????????????????# ## ???????????????????? | | ???????????????????? # ??????????????????? | | ???????????????????? # ??????????????????? | | ????????????????????#### #######?????????????????? | | ????????????????????????#????????????????????????? | | ?????????????????????????????????????????????????? | | ?????????????????????????????????????????????????? | | ?????????????????????????????????????????????????? | | ?????????????????????????????????????????????????? | | ?????????????????????????????????????????????????? | | ?????????????????????????????????????????????????? | | ?????????????????????????????????????????????????? | | ?????????????????????????????????????????????????? | | ?????????????????????????????????????????????????? | | ?????????????????????????????????????????????????? | | ?????????????????????????????????????????????????? | | ?????????????????????????????????????????????????? | | ?????????????????????????????????????????????????? | +----------------------------------------------------+ Best States ------------- Heat Dissipation 40 Energy Generation 36 Energy Capacity 500 Matter Stores 300 Matter Capacity 300 Sight Range 22 Terrain Scan Range 16 Terrain Scan Density 10 ECM Strength 3 Power Amplification 20 Armor Coverage 225 Evasion (%) 66 Melee Accuracy 8 Recoil Reduction 2 Defensive Hacking 10 Item Schematics ----------------- Cesium-ion Thruster | -8/Materials | Scanalyzed Flight Unit | -8/Materials | Scanalyzed Datajack | -8/Materials | Scanalyzed Lrg. Storage Unit | -8/Materials | Scanalyzed Shield Generator | -8/Materials | Scanalyzed Lgt. Treads | -8/Materials | Scanalyzed Mic. Fission Core | -7/Factory | Hacked Robot Schematics ------------------ None Fabricated ------------ Nothing Alien Tech Used ----------------- None Achievements -------------- Error 47 Factory Defaults Part-time Excavator Challenges ------------ None Game ------ Seed MakeshiftAssaultImmobilizer Manual? 0 Play Time 01:34:02 Cumulative 27.9 hours Start 2024.06.04 @ 14:29:17 End 2024.06.04 @ 16:10:39 Sessions 1 Manual Loads 0 Difficulty Rogue Special Mode None Game No. 25 Rogue 25 Adventurer 0 Explorer 0 Win Type - Total 0 Types 0/0/0/0/0/0/0/0/0 Lore% 21 Gallery% 31 Achievement% 27 Wizard Run 0 Options --------- Layout 0 ASCII 0 Keyboard 1 Movement Numpad Keybinds 0 Fullscreen 1 Font 24/Cog Map View 76x50 Zoom Use 0% Tactical HUD 1 Map Filters NONE Filters NONE Steam 1 RUN: 443813b9-ce49-487f-8bdc-693aaed423f5